Cogmind - Beta 10.2 @@@ ROGUE MODE // 2020.12.09 @ 12:25:01 Player: CrossedViper Result: Destroyed by D-53 Grenadier with Mini Grenade Launcher Performance ------------- Evolutions (0) 0 Regions Visited (2) 400 Robots Destroyed (7) 35 Value Destroyed (173) 173 Prototype IDs (1) 20 Alien Tech Used (0) 0 Bonus (-890) -890 TOTAL SCORE: -262 Bonus ------- Friendly Fire -890 Cogmind --------- Core Integrity 0/250 Matter 412/1800 Energy 160/160 System Corruption 0% Temperature Cool (0) Movement Treading (160) Location -10/Mines Parts ------- > --- POWER (1) -------- Light Nuclear Core > --- PROPULSION (2) --- Light Treads Light Treads > --- UTILITY (2) ------ Large Storage Unit YI-UF0's Bottomless Matter Pit > --- WEAPON (2) ------- Light Cannon > --- INVENTORY (10) --- Ion Engine Light Ion Engine Large Storage Unit Weapon Shielding Small Laser Peak State ------------ > --- POWER ------------ Light Nuclear Core > --- PROPULSION ------- Light Treads Light Treads > --- UTILITY ---------- Large Storage Unit YI-UF0's Bottomless Matter Pit > --- WEAPON ----------- EM Pulse Gun Light Cannon > --- INVENTORY -------- Large Storage Unit [Rating: 14] Favorites ----------- Power Ion Engine Engine Ion Engine Power Core Light Nuclear Core Propulsion Aluminum Leg Treads Light Treads Leg Aluminum Leg Utility Large Storage Unit Storage Large Storage Unit Protection Light Armor Plating Weapon EM Pulse Gun Energy Gun EM Pulse Gun Ballistic Gun Assault Rifle Ballistic Cannon Light Cannon Launcher Grenade Launcher Build | -11 -10 -10 ------- Run | Scr Mat Min Slots Evolved . | . . . Power . | . . . Propulsion . | . . . Utility . | . . . Weapon . | . . . Parts Attached 21 | . 3 18 Power 2 | . . 2 Engine 1 | . . 1 Core 1 | . . 1 Reactor . | . . . Propulsion 4 | . 1 3 Treads 3 | . . 3 Leg 1 | . 1 . Wheel . | . . . Hover . | . . . Flight . | . . . Utility 5 | . 2 3 Device . | . . . Storage 3 | . 1 2 Processor . | . . . Hackware . | . . . Protection 2 | . 1 1 Artifact . | . . . Weapon 10 | . . 10 Energy Gun 5 | . . 5 Energy Cannon . | . . . Ballistic Gun 2 | . . 2 Ballistic Cannon 1 | . . 1 Launcher 2 | . . 2 Special Weapon . | . . . Impact Weapon . | . . . Slashing Weapon . | . . . Piercing Weapon . | . . . Special Melee Weapon . | . . . Unidentified Prototypes 1 | . . 1 Parts Lost 11 | . . 11 Power 1 | . . 1 Propulsion 2 | . . 2 Utility 1 | . . 1 Weapon 7 | . . 7 Highest Loss Streak 8 | . . 8 Average Slot Usage (%) 91 | . 99 87 Engine 8 | . 14 5 Core 5 | . . 8 Treads 11 | . . 17 Leg 16 | . 28 10 Storage 16 | . 14 17 Protection 7 | . 13 3 Energy Gun 15 | . 14 16 Ballistic Gun 6 | . 14 2 Ballistic Cannon 2 | . . 3 Naked Turns . | . . . Heaviest Build 34 | 13 28 34 Greatest Support 40 | 20 20 40 Greatest Overweight (x) 1 | . 1 1 Average Overweight (x) . | . . . Largest Inventory Capacity 10 | . 10 10 Average Capacity 8 | . 7 10 Most Carried 10 | . 9 10 Average Carried 5 | . 6 4 Final Capacity 10 | 6 10 10 Final Carried 9 | 6 9 5 Class Distribution -------------------- 100% | Mutant Dominant Class ---------------- Mutant | -10/Materials Mutant | -10/Mines Resources | -11 -10 -10 ----------- Run | Scr Mat Min Matter Collected 655 | 176 62 417 Remotely . | . . . Salvage Created 455 | . 109 346 Parts 14 | . 8 6 Haulers Intercepted . | . . . Recyclers Shooed . | . . . Parts Field Recycled . | . . . Retrieved Matter . | . . . Parts Self-Destructed . | . . . Prevented . | . . . Kills | -11 -10 -10 ------- Run | Scr Mat Min Combat Hostiles Destroyed 17 | . 3 14 Guns 11 | . 3 8 AOE 6 | . . 6 Classes Destroyed 4 | . 2 2 Worker 1 | . . 1 Swarmer 1 | . 1 . Grunt 4 | . 2 2 Assembled 12 | . . 12 Best Kill Streak 6 | . 2 6 Combat Bots Only 6 | . 2 6 Max Kills in Single Turn 2 | . 1 2 Gunslinging . | . . . Exploded 2 | . . 2 Melee . | . . . Uniques/NPCs Destroyed 1 | . . 1 YI-UF0 (-10/Mines) Combat | -11 -10 -10 -------- Run | Scr Mat Min Damage Taken 1303 | . 132 1171 Core 259 | . . 259 Absorbed by Shields . | . . . Core Remaining (%) 100 | 100 . . Volleys Fired 61 | . 8 53 Largest 2 | . 2 2 Hottest 80 | . 60 80 Shots Fired 99 | . 16 83 Gun 89 | . 16 73 Cannon . | . . . Launcher 10 | . . 10 Special . | . . . Kinetic 34 | . 8 26 Thermal . | . . . Explosive 10 | . . 10 Electromagnetic 55 | . 8 47 Robot Hit Streak 11 | . 2 11 Robot Miss Streak 4 | . 2 4 Penetration Max . | . . . Secondary Targets 2 | . 1 1 Max Gunslinging Chain 1 | . 1 1 Shots Hit Robots 60 | . 7 53 Core Hits 39 | . 6 33 Critical Hits . | . . . Critical Kills . | . . . Critical Parts Destroyed . | . . . Melee Attacks . | . . . Impact . | . . . Slashing . | . . . Piercing . | . . . Sneak Attacks . | . . . Combat Hostiles . | . . . Follow-up Attacks . | . . . Damage Inflicted 1073 | . 123 950 Guns 654 | . 123 531 Cannons . | . . . Explosions 419 | . . 419 Melee . | . . . Ramming . | . . . Kinetic 220 | . 53 167 Thermal . | . . . Explosive 419 | . . 419 Electromagnetic 434 | . 70 364 Impact . | . . . Slashing . | . . . Piercing . | . . . Highest Corruption . | . . . Average Corruption . | . . . Corruption Purged . | . . . Overload Shots . | . . . Overflow Damage 22 | . . 22 Projectiles . | . . . Explosions 22 | . . 22 Melee . | . . . Knockbacks . | . . . Impact . | . . . Kinetic . | . . . Secondary . | . . . Self-Inflicted Damage 56 | . . 56 Shots 3 | . . 3 Rammed . | . . . Targets Rammed . | . . . Kicked . | . . . Crushed . | . . . Highest Temperature 135 | . 105 135 Average Temperature 40 | . 49 38 Received Heat Transfer 155 | . 57 98 Siege Activations . | . . . Robots Corrupted 1 | . . 1 Combat Hostiles . | . . . Parts Fried 2 | . . 2 Impact Corruptions . | . . . Robots Melted . | . . . Combat Hostiles . | . . . Parts Melted . | . . . Heat Transferred . | . . . Parts Sabotaged . | . . . Parts Stolen . | . . . Parts Stripped . | . . . Power Chain Reactions . | . . . Missiles Intercepted . | . . . Alert | -11 -10 -10 ------- Run | Scr Mat Min Peak Influence 140 | . 140 55 Initial . | . . . Average 22 | . 38 14 Maximum Alert Level . | . . . Low Security (%) 100 | . 100 100 Level 1 . | . . . Level 2 . | . . . Level 3 . | . . . Level 4 . | . . . Level 5 . | . . . High Security . | . . . Max Security . | . . . Squads Dispatched 1 | . 1 . Investigation . | . . . Extermination . | . . . Reinforcement 1 | . 1 . Assault . | . . . Garrison . | . . . Intercept . | . . . Construction Impeded . | . . . Haulers Reinforced . | . . . Stealth | -11 -10 -10 --------- Run | Scr Mat Min Distress Signals 1 | . . 1 Communications Jammed . | . . . Distress Signals . | . . . Times Spotted 27 | . 10 17 Peak Tracking Total 6 | . 4 6 Tactical Retreats 4 | . 2 2 Traps | -11 -10 -10 ------- Run | Scr Mat Min Traps Triggered . | . . . Indirectly . | . . . Trap Hack Attempts . | . . . Triggered . | . . . Disarmed . | . . . Reprogrammed . | . . . Reused . | . . . Traps Extracted . | . . . Installed . | . . . Triggered . | . . . Machines | -11 -10 -10 ---------- Run | Scr Mat Min Machines Disabled . | . . . Max in Single Turn . | . . . Machines Sabotaged . | . . . Garrisons Compromised . | . . . Overloaded Fab Kills . | . . . Fab Network Shutdowns . | . . . Hacking | -11 -10 -10 --------- Run | Scr Mat Min Machines Accessed 1 | . 1 . Terminals 1 | . 1 . Fabricators . | . . . Repair Stations . | . . . Recycling Units . | . . . Scanalyzers . | . . . Garrison Access . | . . . Total Hacks 4 | . 4 . Successful 3 | . 3 . Failed 1 | . 1 . Catastrophic . | . . . Database Lockouts . | . . . Manual 3 | . 3 . Terminals 4 | . 4 . Fabricators . | . . . Repair Stations . | . . . Recycling Units . | . . . Scanalyzers . | . . . Garrison Access . | . . . Terminal Hacks 2 | . 2 . Branch Access Points 1 | . 1 . Terminal Index 1 | . 1 . Fabricator Hacks . | . . . Repair Station Hacks . | . . . Recycling Unit Hacks . | . . . Scanalyzer . | . . . Garrison Access Hacks . | . . . Unauthorized Hacks 1 | . 1 . Terminals 1 | . 1 . Botnet 1 | . 1 . Fabricators . | . . . Repair Stations . | . . . Recycling Units . | . . . Scanalyzers . | . . . Garrison Access . | . . . Data Cores Recovered . | . . . Used . | . . . Hacking Detections . | . . . Full Trace Events . | . . . Feedback Events . | . . . Feedback Blocked . | . . . Robot Schematics Acquired . | . . . Robots Built . | . . . Matter . | . . . Time . | . . . Total Robot Build Rating . | . . . Part Schematics Acquired . | . . . Parts Built . | . . . Matter . | . . . Time . | . . . Total Part Build Rating . | . . . Parts Repaired . | . . . Time . | . . . Parts Recycled . | . . . Recycled Matter . | . . . Retrieved Matter . | . . . Retrieved Components . | . . . Parts Scanalyzed . | . . . Part Schematics Acquired . | . . . Parts Damaged . | . . . Bothacking | -11 -10 -10 ------------ Run | Scr Mat Min Used RIF Installer . | . . . Robots Hacked . | . . . Non-combat . | . . . Combat . | . . . Robot Hacks Applied . | . . . Relay Couplers Released . | . . . Robots Rewired . | . . . Allies Hacked . | . . . Hacks Repelled . | . . . Allies | -11 -10 -10 -------- Run | Scr Mat Min Total Allies 3 | . . 3 Largest Group 3 | . . 3 Highest-Rated Group 40 | . . 40 Highest-Rated Ally 16 | . . 16 Total Orders . | . . . Ally Attacks . | . . . Total Damage . | . . . Kills . | . . . Allies Corrupted . | . . . Allies Melted . | . . . Intel | -11 -10 -10 ------- Run | Scr Mat Min Robot Analysis Total . | . . . Derelict Logs Recovered 1 | . . 1 Drone Launches . | . . . Drone Recoveries . | . . . Exploration | -11 -10 -10 ------------- Run | Scr Mat Min Turns Passed 1643 | . 563 1080 Spaces Moved 668 | 1 263 404 Core . | . . . Treads 240 | . . 240 Legs 428 | 1 263 164 Wheels . | . . . Hover . | . . . Flight . | . . . Fastest Speed 120 | 120 120 150 Average Speed 146 | 120 131 155 Slowest Speed 160 | 120 150 160 Overloaded Moves . | . . . Propulsion Burnouts . | . . . Robots Hopped . | . . . Cave-ins Triggered . | . . . Exploration Rate (%) 39 | 2 39 76 Regions Visited 2 Branch Regions 1 Pre-discovered Areas 1 | . . 1 Known Exits Taken 1 | . 1 . Unknown Exits Taken 1 | 1 . . Scrap Searched 1 | . . 1 Spaces Dug 6 | . . 6 Terrain Destroyed 42 | . . 42 Melee . | . . . Projectile . | . . . AOE 42 | . . 42 Terrain Rammed . | . . . Walls Destroyed . | . . . Machines Disabled . | . . . Actions | -11 -10 -10 --------- Run | Scr Mat Min Total 1237 | . 467 770 Wait 470 | . 185 285 Move 666 | . 262 404 Hop . | . . . Pick Up 13 | . 5 8 Fast Attach 1 | . 1 . Attach 10 | . . 10 Detach . | . . . Swap 10 | . 2 8 Drop 6 | . 4 2 Fire 61 | . 8 53 Melee . | . . . Ram . | . . . Kick . | . . . Crush . | . . . Escape Stasis . | . . . Rewire . | . . . Trap . | . . . Miscellaneous . | . . . Route ------- -11/Scrapyard -10/Materials (discovered 3 exits: [*Mat] / *Min x2) -10/Mines (discovered 1 exit: [*Mat]) History --------- Turn | Location | Event 1 | -11/Scrapyard | Discovered new exit (range 0) 1 | -11/Scrapyard | Entered Materials 41 | -10/Materials | Identified exit to Mines 315 | -10/Materials | Build established: Mutant 400 | -10/Materials | Discovered new exit (range 5) 564 | -10/Materials | Entered Mines 587 | -10/Mines | Discovered new exit (range 10) 675 | -10/Mines | YI-UF0 nonchalantly dropped a Grenade Launcher on the ground 752 | -10/Mines | Destroyed YI-UF0 761 | -10/Mines | Found Prototype Storage 763 | -10/Mines | Identified YI-UF0's Bottomless Matter Pit 822 | -10/Mines | Assembled infested the area 827 | -10/Mines | Assisted by a Guerilla fighting off Assembled 959 | -10/Mines | Core integrity fell below 50% 986 | -10/Mines | Core integrity fell below 20% 1020 | -10/Mines | Lost 8 parts (1p2n5w) 1414 | -10/Mines | Assisted by bots powering up and referring to "LRC-V3" 1449 | -10/Mines | Learned location of Recycling (-8) 1644 | -10/Mines | Destroyed by D-53 Grenadier with Mini Grenade Launcher Last Messages --------------- 01352_ Dropped Lgt. Treads. 01385_ Acquired 14 matter. 01391_ Acquired 67 matter. 01414_ Trooper 1a: "Hello LRC-V3. What is your command?" 01414_ Mercenary 1a: "Hello LRC-V3. What is your command?" 01414_ Trooper 1b: "Hello LRC-V3. What is your command?" 01419_ T-07 Excavator is excavating. 01449_ Acquired derelict log, extracted data. World map updated: -8/Recycling. 01449_ T-07 Excavator is excavating. 01515_ Acquired 6 matter. 01537_ Acquired 73 matter. 01540_ Acquired Ion Engine. 01551_ Acquired Sml. Laser. 01553_ Acquired Lgt. Ion Engine. 01559_ Acquired 12 matter. 01570_ Acquired Weapon Shielding. 01626_ Acquired 7 matter. 01644_ Trooper 1a destroyed. 01644_ EM Pulse Gun destroyed. Map ----- +----------------------------------------------------+ | | | | | | | ?????????????????????????????????????????????????? | | ?????????????????????????????????????????????????? | | ?????????????????????????????????????????????????? | | ?????????????????????????????????????????????????? | | ?????????????????????????????????????????????????? | | ?????????????????????????????????????????????????? | | ?????????????????????????????????????????????????? | | ?????????????????????????????????????????????????? | | ?????????????????????????????????????????????????? | | ?????????????????????????????????????????????????? | | ??????????????????????????????????????###????????? | | ?????????????????????????????????????? #??????##? | | ??????????????????????????????????????# #?????? ? | | ??????????????????????????????????????# #?????# ? | | ??????????????????????????????????????# #?????# # | | ??????????????????????????????????????# #?????# # | | ??????????????????????????????????????# #????## # | | ??????????????####???????????????????## #????# | | ??????????##### ##?????????????????## ##??? | | ?????????## ###???????????????# #???? | | ?????????# ##?????????????## #???? | | ?????????# #######???##### ##???# | | ?????????# gg @= ???# ##??# | | ?????????# ##### % ???# ## #### | | ?????????## #????# #??# #### | | ??????????## ##????# #??# ###??# | | ???????????#### #?????# ##### #????####### | | ??????????????#% ##?????# ## #????????## | | ??????????????# ##??????# ## #####???????## | | ???###????????# #???????# * #??????????## | | ??## #???????# #???????#%=###??????????# | | ?## ??????## #???????#=%#????????????# | | ?# #????## ##??????# *#????????????# | | ?# ##### ##?????#!%#????????????# | | ??# ##????#=%#????????????# | | ???# #?####%=###??????????## %= ! | | ???## #?# =! #???????????### ! * | | ??### #?# """ #?????????????## | | ?## #### ##?# """ *#????????####??# | | ?# ##??## ##??# """ #???????## #### | | ?# #?????###???# #??????## ## | | ?## #???????????# #????### | | ??## ##??????????# < #?#### | | ???# ##?????????# ### | | ???# ##????????# ## | | ???# ###??????########## | | ???# ##??????????????## ## %### | +----------------------------------------------------+ Best States ------------- Heat Dissipation 25 Energy Generation 14 Energy Capacity 250 Matter Stores 407 Matter Capacity 1800 Sight Range 16 Terrain Scan Density 10 Armor Coverage 150 Evasion (%) 40 Recoil Reduction 2 Item Schematics ----------------- None Robot Schematics ------------------ None Fabricated ------------ Nothing Alien Tech Used ----------------- None Achievements -------------- None Challenges ------------ None Game ------ Seed HoverShrapnelLance Manual? 0 Play Time 00:10:12 Cumulative 127.5 hours Start 2020.12.09 @ 12:17:13 End 2020.12.09 @ 12:25:01 Sessions 1 Manual Loads 0 Difficulty Rogue Special Mode None Game No. 134 Rogue 127 Adventurer 0 Explorer 7 Win Type - Total 1 Types 0/0/1/0/0/0/0/0/0 Lore% 56 Gallery% 84 Achievement% 64 Wizard Run 0 Options --------- ASCII 0 Keyboard 0 Movement Mouse Keybinds 0 Fullscreen 1 Font 18/X11 Map View 76x50 Tactical HUD 1 Map Filters NONE Filters NONE Steam 1 RUN: b4a51c0e-81ad-4d73-b9f0-e6eae6436482